[Event "Titled Tuesday Blitz November 01 Early 2022"]
[White "Terzi, Alexei"]
[Black "Viana Da Costa, Fernando"]
[WhiteFideId "13505076"]
[BlackFideId "2111900"]
[WhiteElo "2172"]
[BlackElo "2277"]
[Result "1-0"]
[Round "05"]
[TimeControl "180+1"]
[Date "2022.11.02"]
[WhiteClock "0:01:14"]
[BlackClock "0:00:03"]

1. e4 {[%clk 0:03:00]}  c5 {[%clk 0:02:21]} 2. Nc3 {[%clk 0:02:59]}  Nc6 {[%clk 0:02:20]} 3. Bb5 {[%clk 0:02:59]}  Nd4 {[%clk 0:02:17]} 4. Bd3 {[%clk 0:02:59]}  e6 {[%clk 0:02:15]} 5. Nf3 {[%clk 0:02:59]}  Nc6 {[%clk 0:02:13]} 6. O-O {[%clk 0:02:57]}  a6 {[%clk 0:02:10]} 7. b3 {[%clk 0:02:57]}  d6 {[%clk 0:01:59]} 8. Bb2 {[%clk 0:02:55]}  Nf6 {[%clk 0:01:59]} 9. a3 {[%clk 0:02:51]}  Be7 {[%clk 0:01:56]} 10. Ne2 {[%clk 0:02:51]}  e5 {[%clk 0:01:53]} 11. Ng3 {[%clk 0:02:50]}  O-O {[%clk 0:01:51]} 12. h3 {[%clk 0:02:49]}  Re8 {[%clk 0:01:48]} 13. c4 {[%clk 0:02:43]}  Bf8 {[%clk 0:01:47]} 14. Bc3 {[%clk 0:02:40]}  a5 {[%clk 0:01:42]} 15. Ne1 {[%clk 0:02:36]}  g6 {[%clk 0:01:38]} 16. Nc2 {[%clk 0:02:35]}  Bg7 {[%clk 0:01:36]} 17. Rb1 {[%clk 0:02:35]}  Be6 {[%clk 0:01:24]} 18. Ne3 {[%clk 0:02:26]}  Nd7 {[%clk 0:01:11]} 19. Nd5 {[%clk 0:02:25]}  b6 {[%clk 0:01:05]} 20. Re1 {[%clk 0:02:21]}  h6 {[%clk 0:01:03]} 21. Nf1 {[%clk 0:02:21]}  Bxd5 {[%clk 0:01:02]} 22. exd5 {[%clk 0:02:16]}  Nd4 {[%clk 0:01:02]} 23. Bxd4 {[%clk 0:02:10]}  cxd4 {[%clk 0:00:54]} 24. b4 {[%clk 0:02:05]}  axb4 {[%clk 0:00:55]} 25. axb4 {[%clk 0:02:05]}  Qc7 {[%clk 0:00:49]} 26. g4 {[%clk 0:02:00]}  Ra3 {[%clk 0:00:47]} 27. Rb3 {[%clk 0:01:58]}  Rea8 {[%clk 0:00:35]} 28. Ng3 {[%clk 0:01:57]}  Nf6 {[%clk 0:00:27]} 29. Kg2 {[%clk 0:01:47]}  Ra2 {[%clk 0:00:20]} 30. h4 {[%clk 0:01:42]}  Qd8 {[%clk 0:00:15]} 31. h5 {[%clk 0:01:39]}  gxh5 {[%clk 0:00:14]} 32. gxh5 {[%clk 0:01:39]}  Nh7 {[%clk 0:00:13]} 33. Bxh7+ {[%clk 0:01:29]}  Kxh7 {[%clk 0:00:14]} 34. Rf3 {[%clk 0:01:28]}  R8a7 {[%clk 0:00:09]} 35. Rxf7 {[%clk 0:01:23]}  Rxf7 {[%clk 0:00:07]} 36. Qb1+ {[%clk 0:01:23]}  Kg8 {[%clk 0:00:07]} 37. Qxa2 {[%clk 0:01:24]}  Qf6 {[%clk 0:00:06]} 38. d3 {[%clk 0:01:24]}  Qf3+ {[%clk 0:00:06]} 39. Kg1 {[%clk 0:01:22]}  Qxd3 {[%clk 0:00:07]} 40. Qe2 {[%clk 0:01:17]}  Qxe2 {[%clk 0:00:06]} 41. Rxe2 {[%clk 0:01:18]}  Bf8 {[%clk 0:00:07]} 42. Ne4 {[%clk 0:01:16]}  Rf3 {[%clk 0:00:07]} 43. Kg2 {[%clk 0:01:16]}  Rb3 {[%clk 0:00:07]} 44. b5 {[%clk 0:01:15]}  Rb4 {[%clk 0:00:06]} 45. Rc2 {[%clk 0:01:14]}  d3 {[%clk 0:00:03]} 46. Rc3 {[%clk 0:01:14]} 1-0


[Site "https://www.chess.com"]

[Event "Titled Tuesday Blitz November 01 Early 2022"]
[White "Unat, Can Haktan"]
[Black "Guerrero Olmos, Sergio"]
[WhiteFideId "6398073"]
[BlackFideId "2257238"]
[WhiteElo "2146"]
[BlackElo "2272"]
[Result "1-0"]
[Round "05"]
[TimeControl "180+1"]
[Date "2022.11.02"]
[WhiteClock "0:01:26"]
[BlackClock "0:02:06"]

1. d4 {[%clk 0:02:57]}  e6 {[%clk 0:02:59]} 2. c4 {[%clk 0:02:56]}  a6 {[%clk 0:02:58]} 3. Nc3 {[%clk 0:02:56]}  b5 {[%clk 0:02:58]} 4. cxb5 {[%clk 0:02:56]}  axb5 {[%clk 0:02:58]} 5. Nxb5 {[%clk 0:02:57]}  Nf6 {[%clk 0:02:57]} 6. Nf3 {[%clk 0:02:55]}  Bb7 {[%clk 0:02:55]} 7. Bf4 {[%clk 0:02:55]}  d6 {[%clk 0:02:55]} 8. Rc1 {[%clk 0:02:56]}  Nd5 {[%clk 0:02:54]} 9. Bg5 {[%clk 0:02:52]}  f6 {[%clk 0:02:52]} 10. Bd2 {[%clk 0:02:51]}  c6 {[%clk 0:02:49]} 11. Na3 {[%clk 0:02:48]}  Be7 {[%clk 0:02:45]} 12. e4 {[%clk 0:02:47]}  Nc7 {[%clk 0:02:43]} 13. Be2 {[%clk 0:02:45]}  O-O {[%clk 0:02:42]} 14. O-O {[%clk 0:02:45]}  Nd7 {[%clk 0:02:42]} 15. Qb3 {[%clk 0:02:44]}  Rb8 {[%clk 0:02:39]} 16. Qe3 {[%clk 0:02:39]}  d5 {[%clk 0:02:37]} 17. exd5 {[%clk 0:02:28]}  exd5 {[%clk 0:02:31]} 18. Ba5 {[%clk 0:02:27]}  Bd6 {[%clk 0:02:30]} 19. Nh4 {[%clk 0:02:00]}  Re8 {[%clk 0:02:29]} 20. Qd2 {[%clk 0:01:52]}  Re4 {[%clk 0:02:28]} 21. Nf5 {[%clk 0:01:42]}  Bf4 {[%clk 0:02:26]} 22. Qd3 {[%clk 0:01:38]}  Bxc1 {[%clk 0:02:23]} 23. Rxc1 {[%clk 0:01:39]}  Nf8 {[%clk 0:02:14]} 24. Qg3 {[%clk 0:01:33]}  Nce6 {[%clk 0:02:07]} 25. Bxd8 {[%clk 0:01:32]}  Rxd8 {[%clk 0:02:06]} 26. Nh6+ {[%clk 0:01:26]} 1-0


[Site "https://www.chess.com"]

[Event "Titled Tuesday Blitz November 01 Early 2022"]
[White "Vakhania, Alexandra"]
[Black "Salman, Pavel"]
[WhiteFideId "13602560"]
[BlackFideId "24153753"]
[WhiteElo "2053"]
[BlackElo "2187"]
[Result "1-0"]
[Round "05"]
[TimeControl "180+1"]
[Date "2022.11.02"]
[WhiteClock "0:00:07"]
[BlackClock "0:00:18"]

1. d4 {[%clk 0:03:00]}  Nf6 {[%clk 0:02:58]} 2. Nf3 {[%clk 0:03:00]}  c5 {[%clk 0:02:57]} 3. c3 {[%clk 0:02:57]}  g6 {[%clk 0:02:57]} 4. Bg5 {[%clk 0:02:47]}  Bg7 {[%clk 0:02:57]} 5. e3 {[%clk 0:02:40]}  d5 {[%clk 0:02:53]} 6. Bd3 {[%clk 0:02:39]}  c4 {[%clk 0:02:48]} 7. Bc2 {[%clk 0:02:38]}  Bf5 {[%clk 0:02:49]} 8. Nbd2 {[%clk 0:02:36]}  Qb6 {[%clk 0:02:46]} 9. Bxf5 {[%clk 0:02:33]}  gxf5 {[%clk 0:02:45]} 10. Qc2 {[%clk 0:02:33]}  Ne4 {[%clk 0:02:44]} 11. Bf4 {[%clk 0:02:33]}  Nd7 {[%clk 0:02:39]} 12. O-O {[%clk 0:02:31]}  Rc8 {[%clk 0:02:35]} 13. Nh4 {[%clk 0:02:24]}  e6 {[%clk 0:02:29]} 14. f3 {[%clk 0:02:24]}  Nxd2 {[%clk 0:02:28]} 15. Qxd2 {[%clk 0:02:25]}  Bf6 {[%clk 0:02:28]} 16. Bg3 {[%clk 0:02:22]}  Nf8 {[%clk 0:02:14]} 17. e4 {[%clk 0:02:18]}  Qd8 {[%clk 0:02:01]} 18. Qf2 {[%clk 0:02:11]}  f4 {[%clk 0:01:58]} 19. Bxf4 {[%clk 0:02:05]}  Bxh4 {[%clk 0:01:57]} 20. g3 {[%clk 0:02:04]}  Bg5 {[%clk 0:01:53]} 21. Bxg5 {[%clk 0:02:00]}  Qxg5 {[%clk 0:01:53]} 22. f4 {[%clk 0:02:01]}  Qd8 {[%clk 0:01:50]} 23. f5 {[%clk 0:02:01]}  Rc7 {[%clk 0:01:45]} 24. fxe6 {[%clk 0:01:57]}  Nxe6 {[%clk 0:01:46]} 25. exd5 {[%clk 0:01:52]}  Qxd5 {[%clk 0:01:47]} 26. Qf6 {[%clk 0:01:52]}  Rg8 {[%clk 0:01:25]} 27. Rae1 {[%clk 0:01:50]}  Qg5 {[%clk 0:00:58]} 28. Qf3 {[%clk 0:00:47]}  Qg4 {[%clk 0:00:44]} 29. d5 {[%clk 0:00:37]}  Qxf3 {[%clk 0:00:43]} 30. Rxf3 {[%clk 0:00:36]}  Rg6 {[%clk 0:00:37]} 31. dxe6 {[%clk 0:00:35]}  Rxe6 {[%clk 0:00:36]} 32. Rfe3 {[%clk 0:00:35]}  Ke7 {[%clk 0:00:34]} 33. Kf2 {[%clk 0:00:35]}  Rd7 {[%clk 0:00:33]} 34. Rxe6+ {[%clk 0:00:34]}  fxe6 {[%clk 0:00:33]} 35. Re2 {[%clk 0:00:35]}  Rd3 {[%clk 0:00:33]} 36. Re3 {[%clk 0:00:33]}  Rd2+ {[%clk 0:00:33]} 37. Re2 {[%clk 0:00:33]}  Rd1 {[%clk 0:00:33]} 38. h4 {[%clk 0:00:31]}  Kf6 {[%clk 0:00:31]} 39. Kf3 {[%clk 0:00:31]}  b5 {[%clk 0:00:30]} 40. g4 {[%clk 0:00:31]}  e5 {[%clk 0:00:25]} 41. Rf2 {[%clk 0:00:28]}  Ke6 {[%clk 0:00:23]} 42. Ke4 {[%clk 0:00:27]}  Re1+ {[%clk 0:00:23]} 43. Kf3 {[%clk 0:00:25]}  a5 {[%clk 0:00:23]} 44. Re2 {[%clk 0:00:22]}  Rf1+ {[%clk 0:00:23]} 45. Kg3 {[%clk 0:00:21]}  Rd1 {[%clk 0:00:21]} 46. h5 {[%clk 0:00:20]}  Kd5 {[%clk 0:00:21]} 47. g5 {[%clk 0:00:20]}  e4 {[%clk 0:00:22]} 48. Kf4 {[%clk 0:00:20]}  Rf1+ {[%clk 0:00:21]} 49. Kg4 {[%clk 0:00:20]}  Rg1+ {[%clk 0:00:20]} 50. Kf5 {[%clk 0:00:19]}  Rf1+ {[%clk 0:00:21]} 51. Kg4 {[%clk 0:00:19]}  b4 {[%clk 0:00:21]} 52. g6 {[%clk 0:00:18]}  hxg6 {[%clk 0:00:21]} 53. hxg6 {[%clk 0:00:19]}  Rg1+ {[%clk 0:00:21]} 54. Kf5 {[%clk 0:00:18]}  b3 {[%clk 0:00:21]} 55. a3 {[%clk 0:00:17]}  a4 {[%clk 0:00:21]} 56. Rxe4 {[%clk 0:00:14]}  Kc5 {[%clk 0:00:17]} 57. Rg4 {[%clk 0:00:12]}  Rf1+ {[%clk 0:00:18]} 58. Kg5 {[%clk 0:00:12]}  Rf8 {[%clk 0:00:17]} 59. g7 {[%clk 0:00:12]}  Rd8 {[%clk 0:00:17]} 60. Kf6 {[%clk 0:00:11]}  Rd6+ {[%clk 0:00:17]} 61. Ke7 {[%clk 0:00:11]}  Rd2 {[%clk 0:00:17]} 62. g8=Q {[%clk 0:00:10]}  Re2+ {[%clk 0:00:18]} 63. Kd7 {[%clk 0:00:09]}  Rd2+ {[%clk 0:00:18]} 64. Kc7 {[%clk 0:00:09]}  Rd5 {[%clk 0:00:18]} 65. Qf8+ {[%clk 0:00:07]}  Kb5 {[%clk 0:00:18]} 66. Qe8+ {[%clk 0:00:07]}  Ka5 {[%clk 0:00:18]} 67. Qa8+ {[%clk 0:00:06]}  Kb5 {[%clk 0:00:17]} 68. Qxd5+ {[%clk 0:00:07]}  Ka6 {[%clk 0:00:18]} 69. Rg6+ {[%clk 0:00:07]}  Ka7 {[%clk 0:00:18]} 70. Qa5# {[%clk 0:00:07]} 1-0


[Site "https://www.chess.com"]

[Event "Titled Tuesday Blitz November 01 Early 2022"]
[White "Vifleemskaia, Svetlana"]
[Black "Darini, Pouria"]
[WhiteFideId "4129490"]
[BlackFideId "12502200"]
[WhiteElo "1929"]
[BlackElo "2483"]
[Result "0-1"]
[Round "05"]
[TimeControl "180+1"]
[Date "2022.11.02"]
[WhiteClock "0:00:03"]
[BlackClock "0:00:17"]

1. d4 {[%clk 0:02:53]}  Nf6 {[%clk 0:02:56]} 2. c4 {[%clk 0:02:52]}  e6 {[%clk 0:02:38]} 3. Nc3 {[%clk 0:02:51]}  Bb4 {[%clk 0:02:38]} 4. e3 {[%clk 0:02:50]}  O-O {[%clk 0:02:36]} 5. Ne2 {[%clk 0:02:50]}  d5 {[%clk 0:02:35]} 6. a3 {[%clk 0:02:51]}  Be7 {[%clk 0:02:35]} 7. cxd5 {[%clk 0:02:50]}  exd5 {[%clk 0:02:34]} 8. g3 {[%clk 0:02:51]}  Nbd7 {[%clk 0:02:29]} 9. Bg2 {[%clk 0:02:51]}  Nb6 {[%clk 0:02:30]} 10. O-O {[%clk 0:02:50]}  c6 {[%clk 0:02:28]} 11. a4 {[%clk 0:02:47]}  a5 {[%clk 0:02:27]} 12. b3 {[%clk 0:02:43]}  Re8 {[%clk 0:02:26]} 13. Ba3 {[%clk 0:02:42]}  Bf5 {[%clk 0:02:21]} 14. Nf4 {[%clk 0:02:35]}  Bxa3 {[%clk 0:02:16]} 15. Rxa3 {[%clk 0:02:34]}  Nc8 {[%clk 0:01:46]} 16. Nd3 {[%clk 0:02:31]}  Nd6 {[%clk 0:01:46]} 17. Nc5 {[%clk 0:02:29]}  Qe7 {[%clk 0:01:42]} 18. Ra2 {[%clk 0:02:23]}  h5 {[%clk 0:01:41]} 19. h3 {[%clk 0:02:19]}  Bg6 {[%clk 0:01:03]} 20. Nd3 {[%clk 0:02:18]}  Nfe4 {[%clk 0:00:59]} 21. Nxe4 {[%clk 0:02:06]}  Bxe4 {[%clk 0:00:59]} 22. Bxe4 {[%clk 0:01:43]}  Qxe4 {[%clk 0:00:58]} 23. Nc5 {[%clk 0:01:42]}  Qf5 {[%clk 0:00:57]} 24. Kg2 {[%clk 0:01:39]}  g6 {[%clk 0:00:54]} 25. Qf3 {[%clk 0:01:34]}  Qxf3+ {[%clk 0:00:53]} 26. Kxf3 {[%clk 0:01:34]}  Kg7 {[%clk 0:00:53]} 27. h4 {[%clk 0:01:31]}  Re7 {[%clk 0:00:52]} 28. Nd3 {[%clk 0:01:15]}  Ne4 {[%clk 0:00:49]} 29. Rc1 {[%clk 0:01:13]}  Ra6 {[%clk 0:00:43]} 30. Nc5 {[%clk 0:01:07]}  Rb6 {[%clk 0:00:41]} 31. Rb2 {[%clk 0:00:55]}  Nd6 {[%clk 0:00:32]} 32. Nd3 {[%clk 0:00:52]}  Ne4 {[%clk 0:00:29]} 33. Nc5 {[%clk 0:00:37]}  Kf8 {[%clk 0:00:25]} 34. Nxe4 {[%clk 0:00:32]}  Rxe4 {[%clk 0:00:26]} 35. Rc5 {[%clk 0:00:31]}  Ra6 {[%clk 0:00:26]} 36. b4 {[%clk 0:00:23]}  axb4 {[%clk 0:00:26]} 37. Rxb4 {[%clk 0:00:24]}  Re7 {[%clk 0:00:27]} 38. Rc3 {[%clk 0:00:23]}  Ke8 {[%clk 0:00:26]} 39. Rcb3 {[%clk 0:00:23]}  Ra7 {[%clk 0:00:27]} 40. Ke2 {[%clk 0:00:17]}  Kd8 {[%clk 0:00:27]} 41. Kd3 {[%clk 0:00:17]}  Kc7 {[%clk 0:00:25]} 42. Kc3 {[%clk 0:00:15]}  Re8 {[%clk 0:00:25]} 43. Kc2 {[%clk 0:00:09]}  Rea8 {[%clk 0:00:26]} 44. Kc3 {[%clk 0:00:09]}  Rb8 {[%clk 0:00:26]} 45. Kc2 {[%clk 0:00:09]}  b6 {[%clk 0:00:26]} 46. Kc3 {[%clk 0:00:09]}  Ra6 {[%clk 0:00:26]} 47. Kc2 {[%clk 0:00:09]}  Rb7 {[%clk 0:00:27]} 48. Kc3 {[%clk 0:00:09]}  Rba7 {[%clk 0:00:28]} 49. Kc2 {[%clk 0:00:09]}  Ra8 {[%clk 0:00:22]} 50. Kc3 {[%clk 0:00:09]}  Re8 {[%clk 0:00:23]} 51. Kd3 {[%clk 0:00:08]}  Rd8 {[%clk 0:00:22]} 52. Kc3 {[%clk 0:00:08]}  f6 {[%clk 0:00:22]} 53. Kd3 {[%clk 0:00:06]}  g5 {[%clk 0:00:23]} 54. hxg5 {[%clk 0:00:05]}  fxg5 {[%clk 0:00:24]} 55. Rb1 {[%clk 0:00:05]}  Rf8 {[%clk 0:00:24]} 56. R1b2 {[%clk 0:00:03]}  Rfa8 {[%clk 0:00:17]} 0-1


[Site "https://www.chess.com"]

[Event "Titled Tuesday Blitz November 01 Early 2022"]
[White "Vlassov, Nikolai"]
[Black "Storey, Charles H"]
[WhiteFideId "4103360"]
[BlackFideId "406686"]
[WhiteElo "2324"]
[BlackElo "2252"]
[Result "1-0"]
[Round "05"]
[TimeControl "180+1"]
[Date "2022.11.02"]
[WhiteClock "0:00:14"]
[BlackClock "0:00:06"]

1. e4 {[%clk 0:03:00]}  d5 {[%clk 0:02:58]} 2. exd5 {[%clk 0:03:00]}  Qxd5 {[%clk 0:02:58]} 3. Nc3 {[%clk 0:03:00]}  Qd8 {[%clk 0:02:58]} 4. Nf3 {[%clk 0:03:00]}  g6 {[%clk 0:02:58]} 5. Bc4 {[%clk 0:02:56]}  Bg7 {[%clk 0:02:58]} 6. h4 {[%clk 0:02:55]}  Nf6 {[%clk 0:02:56]} 7. h5 {[%clk 0:02:55]}  Nxh5 {[%clk 0:02:54]} 8. Rxh5 {[%clk 0:02:55]}  gxh5 {[%clk 0:02:54]} 9. Ng5 {[%clk 0:02:55]}  e6 {[%clk 0:02:46]} 10. Qxh5 {[%clk 0:02:54]}  Qf6 {[%clk 0:02:37]} 11. d4 {[%clk 0:02:40]}  Qg6 {[%clk 0:02:32]} 12. Qh2 {[%clk 0:02:39]}  h6 {[%clk 0:02:05]} 13. Qxc7 {[%clk 0:02:23]}  O-O {[%clk 0:02:04]} 14. Nf3 {[%clk 0:01:40]}  Nc6 {[%clk 0:02:04]} 15. Be3 {[%clk 0:01:34]}  Qxc2 {[%clk 0:01:56]} 16. Rc1 {[%clk 0:01:23]}  Qxb2 {[%clk 0:01:56]} 17. Qg3 {[%clk 0:01:21]}  Kh8 {[%clk 0:01:49]} 18. Qh4 {[%clk 0:01:20]}  Ne7 {[%clk 0:01:28]} 19. Bxh6 {[%clk 0:01:16]}  Nf5 {[%clk 0:01:27]} 20. Bxg7+ {[%clk 0:01:17]}  Kxg7 {[%clk 0:01:27]} 21. Qg5+ {[%clk 0:01:17]}  Kh7 {[%clk 0:01:20]} 22. Ne4 {[%clk 0:01:13]}  f6 {[%clk 0:01:02]} 23. Qh5+ {[%clk 0:01:05]}  Kg7 {[%clk 0:01:01]} 24. Qg4+ {[%clk 0:01:05]}  Kh7 {[%clk 0:00:50]} 25. Qf4 {[%clk 0:00:46]}  Bd7 {[%clk 0:00:36]} 26. Bd3 {[%clk 0:00:38]}  Bb5 {[%clk 0:00:29]} 27. Rc7+ {[%clk 0:00:36]}  Rf7 {[%clk 0:00:22]} 28. Rxf7+ {[%clk 0:00:33]}  Kg8 {[%clk 0:00:23]} 29. Bxb5 {[%clk 0:00:26]}  Qxb5 {[%clk 0:00:21]} 30. Rxf6 {[%clk 0:00:21]}  Qb1+ {[%clk 0:00:19]} 31. Ke2 {[%clk 0:00:20]}  Qxa2+ {[%clk 0:00:17]} 32. Nfd2 {[%clk 0:00:20]}  Qa6+ {[%clk 0:00:17]} 33. Kf3 {[%clk 0:00:17]}  Nxd4+ {[%clk 0:00:16]} 34. Kg4 {[%clk 0:00:16]}  Nf5 {[%clk 0:00:13]} 35. Qg5+ {[%clk 0:00:15]}  Kh8 {[%clk 0:00:11]} 36. Rh6+ {[%clk 0:00:13]}  Nxh6+ {[%clk 0:00:10]} 37. Qxh6+ {[%clk 0:00:14]}  Kg8 {[%clk 0:00:10]} 38. Qg6+ {[%clk 0:00:15]}  Kh8 {[%clk 0:00:10]} 39. Nf6 {[%clk 0:00:15]}  Qa5 {[%clk 0:00:06]} 40. Qh7# {[%clk 0:00:14]} 1-0


[Site "https://www.chess.com"]

[Event "Titled Tuesday Blitz November 01 Early 2022"]
[White "Vovk, Orest"]
[Black "Ginzburg, Yakov"]
[WhiteFideId "14113490"]
[BlackFideId "4157176"]
[WhiteElo "2215"]
[BlackElo "2305"]
[Result "1-0"]
[Round "05"]
[TimeControl "180+1"]
[Date "2022.11.02"]
[WhiteClock "0:00:06"]
[BlackClock "0:00:01"]

1. h4 {[%clk 0:03:00]}  e5 {[%clk 0:02:54]} 2. h5 {[%clk 0:02:58]}  h6 {[%clk 0:02:53]} 3. d4 {[%clk 0:02:57]}  e4 {[%clk 0:02:51]} 4. d5 {[%clk 0:02:53]}  Bc5 {[%clk 0:02:49]} 5. Bf4 {[%clk 0:02:52]}  Qf6 {[%clk 0:02:47]} 6. e3 {[%clk 0:02:48]}  Qxb2 {[%clk 0:02:45]} 7. Nd2 {[%clk 0:02:47]}  Nf6 {[%clk 0:02:28]} 8. Bc4 {[%clk 0:02:38]}  d6 {[%clk 0:02:23]} 9. Ne2 {[%clk 0:02:36]}  Bb4 {[%clk 0:02:14]} 10. O-O {[%clk 0:02:30]}  Nxh5 {[%clk 0:02:14]} 11. Rb1 {[%clk 0:02:29]}  Qa3 {[%clk 0:02:10]} 12. Rb3 {[%clk 0:02:16]}  Qa5 {[%clk 0:02:09]} 13. c3 {[%clk 0:02:15]}  Bc5 {[%clk 0:02:06]} 14. Rb5 {[%clk 0:01:46]}  Qa3 {[%clk 0:01:59]} 15. Nb1 {[%clk 0:01:38]}  Qa6 {[%clk 0:01:27]} 16. Rxc5 {[%clk 0:01:37]}  Qb6 {[%clk 0:01:22]} 17. Rb5 {[%clk 0:01:34]}  Qa6 {[%clk 0:01:22]} 18. Bh2 {[%clk 0:01:17]}  Nf6 {[%clk 0:01:16]} 19. Nd4 {[%clk 0:01:06]}  Bd7 {[%clk 0:01:09]} 20. Rb4 {[%clk 0:01:05]}  b5 {[%clk 0:01:02]} 21. Nxb5 {[%clk 0:01:03]}  O-O {[%clk 0:01:00]} 22. Nxc7 {[%clk 0:01:00]}  Qc8 {[%clk 0:01:00]} 23. Nxa8 {[%clk 0:01:00]}  Bg4 {[%clk 0:00:53]} 24. Qd4 {[%clk 0:00:55]}  Nbd7 {[%clk 0:00:37]} 25. Qxa7 {[%clk 0:00:52]}  Ne5 {[%clk 0:00:20]} 26. Bxe5 {[%clk 0:00:52]}  dxe5 {[%clk 0:00:19]} 27. Nc7 {[%clk 0:00:44]}  Bf3 {[%clk 0:00:17]} 28. Ne6 {[%clk 0:00:35]}  fxe6 {[%clk 0:00:14]} 29. dxe6 {[%clk 0:00:36]}  Kh7 {[%clk 0:00:10]} 30. Qb8 {[%clk 0:00:21]}  Qc5 {[%clk 0:00:08]} 31. Qb6 {[%clk 0:00:19]}  Qe7 {[%clk 0:00:08]} 32. Nd2 {[%clk 0:00:14]}  Ng4 {[%clk 0:00:07]} 33. Nxf3 {[%clk 0:00:07]}  Rxf3 {[%clk 0:00:07]} 34. Qc6 {[%clk 0:00:07]}  Qh4 {[%clk 0:00:06]} 35. Qxe4+ {[%clk 0:00:07]}  Kg8 {[%clk 0:00:04]} 36. Rb8+ {[%clk 0:00:06]}  Rf8 {[%clk 0:00:01]} 37. e7+ {[%clk 0:00:06]}  Kh8 {[%clk 0:00:01]} 38. Rxf8# {[%clk 0:00:06]} 1-0


[Site "https://www.chess.com"]

[Event "Titled Tuesday Blitz November 01 Early 2022"]
[White "Vusatiuk, Vladimir"]
[Black "De Souza, Cristiano Gomes"]
[WhiteFideId "14118610"]
[BlackFideId "2151758"]
[WhiteElo "2208"]
[BlackElo "2068"]
[Result "0-1"]
[Round "05"]
[TimeControl "180+1"]
[Date "2022.11.02"]
[WhiteClock "0:00:11"]
[BlackClock "0:00:17"]

1. Nf3 {[%clk 0:03:00]}  Nf6 {[%clk 0:02:58]} 2. g3 {[%clk 0:02:59]}  g6 {[%clk 0:02:58]} 3. c4 {[%clk 0:02:59]}  Bg7 {[%clk 0:02:58]} 4. Bg2 {[%clk 0:03:00]}  O-O {[%clk 0:02:59]} 5. O-O {[%clk 0:03:01]}  d6 {[%clk 0:02:59]} 6. d4 {[%clk 0:03:01]}  Nc6 {[%clk 0:03:00]} 7. Nc3 {[%clk 0:03:01]}  Bf5 {[%clk 0:02:59]} 8. Nh4 {[%clk 0:02:24]}  Bd7 {[%clk 0:02:57]} 9. e4 {[%clk 0:02:09]}  e5 {[%clk 0:02:52]} 10. d5 {[%clk 0:02:09]}  Na5 {[%clk 0:02:48]} 11. Qd3 {[%clk 0:01:52]}  b6 {[%clk 0:02:27]} 12. b4 {[%clk 0:01:51]}  Nb7 {[%clk 0:02:27]} 13. Bd2 {[%clk 0:01:52]}  a5 {[%clk 0:02:27]} 14. a3 {[%clk 0:01:52]}  h6 {[%clk 0:02:21]} 15. h3 {[%clk 0:01:48]}  Kh7 {[%clk 0:02:17]} 16. f4 {[%clk 0:01:45]}  exf4 {[%clk 0:02:14]} 17. Bxf4 {[%clk 0:00:59]}  Nh5 {[%clk 0:02:05]} 18. Nf3 {[%clk 0:00:45]}  Nxf4 {[%clk 0:02:04]} 19. gxf4 {[%clk 0:00:45]}  Qf6 {[%clk 0:02:04]} 20. e5 {[%clk 0:00:22]}  Qxf4 {[%clk 0:01:49]} 21. Rae1 {[%clk 0:00:17]}  Bf5 {[%clk 0:01:45]} 22. Qe2 {[%clk 0:00:11]}  axb4 {[%clk 0:01:36]} 23. axb4 {[%clk 0:00:11]}  Rfe8 {[%clk 0:01:10]} 24. h4 {[%clk 0:00:10]}  dxe5 {[%clk 0:01:06]} 25. Ng5+ {[%clk 0:00:10]}  hxg5 {[%clk 0:01:00]} 26. Rxf4 {[%clk 0:00:11]}  exf4 {[%clk 0:01:01]} 27. Qd2 {[%clk 0:00:11]}  Rxe1+ {[%clk 0:00:57]} 28. Qxe1 {[%clk 0:00:12]}  Nd6 {[%clk 0:00:56]} 29. c5 {[%clk 0:00:11]}  bxc5 {[%clk 0:00:47]} 30. bxc5 {[%clk 0:00:12]}  Nc4 {[%clk 0:00:46]} 31. hxg5 {[%clk 0:00:13]}  Ne3 {[%clk 0:00:44]} 32. Qh4+ {[%clk 0:00:13]}  Kg8 {[%clk 0:00:43]} 33. Ne2 {[%clk 0:00:10]}  Nxg2 {[%clk 0:00:38]} 34. Kxg2 {[%clk 0:00:10]}  Ra2 {[%clk 0:00:38]} 35. Kf3 {[%clk 0:00:07]}  Be5 {[%clk 0:00:34]} 36. Nxf4 {[%clk 0:00:05]}  Ra3+ {[%clk 0:00:33]} 37. Kf2 {[%clk 0:00:04]}  Ra4 {[%clk 0:00:31]} 38. Nxg6 {[%clk 0:00:04]}  Rxh4 {[%clk 0:00:28]} 39. Nxh4 {[%clk 0:00:05]}  Be4 {[%clk 0:00:27]} 40. d6 {[%clk 0:00:04]}  cxd6 {[%clk 0:00:27]} 41. cxd6 {[%clk 0:00:05]}  Bxd6 {[%clk 0:00:27]} 42. Ke3 {[%clk 0:00:05]}  Bd5 {[%clk 0:00:25]} 43. Nf5 {[%clk 0:00:04]}  Bc5+ {[%clk 0:00:24]} 44. Kf4 {[%clk 0:00:05]}  Be6 {[%clk 0:00:23]} 45. Nh4 {[%clk 0:00:03]}  Kg7 {[%clk 0:00:23]} 46. Nf3 {[%clk 0:00:04]}  Kg6 {[%clk 0:00:22]} 47. Ne5+ {[%clk 0:00:04]}  Kh5 {[%clk 0:00:22]} 48. g6 {[%clk 0:00:04]}  fxg6 {[%clk 0:00:21]} 49. Nf3 {[%clk 0:00:04]}  Bd6+ {[%clk 0:00:20]} 50. Ke4 {[%clk 0:00:05]}  Kg4 {[%clk 0:00:18]} 51. Nd4 {[%clk 0:00:05]}  Bf5+ {[%clk 0:00:18]} 52. Kd5 {[%clk 0:00:05]}  Bg3 {[%clk 0:00:18]} 53. Ne2 {[%clk 0:00:06]}  g5 {[%clk 0:00:17]} 54. Kd4 {[%clk 0:00:06]}  Kf3 {[%clk 0:00:17]} 55. Ng1+ {[%clk 0:00:04]}  Kg2 {[%clk 0:00:17]} 56. Ne2 {[%clk 0:00:04]}  Bf4 {[%clk 0:00:16]} 57. Nxf4+ {[%clk 0:00:04]}  gxf4 {[%clk 0:00:16]} 58. Ke5 {[%clk 0:00:05]}  f3 {[%clk 0:00:16]} 59. Kxf5 {[%clk 0:00:05]}  f2 {[%clk 0:00:16]} 60. Kg6 {[%clk 0:00:06]}  f1=Q {[%clk 0:00:16]} 61. Kh7 {[%clk 0:00:07]}  Qf6 {[%clk 0:00:16]} 62. Kg8 {[%clk 0:00:07]}  Kh3 {[%clk 0:00:16]} 63. Kh7 {[%clk 0:00:08]}  Kg4 {[%clk 0:00:16]} 64. Kg8 {[%clk 0:00:09]}  Qe7 {[%clk 0:00:16]} 65. Kh8 {[%clk 0:00:09]}  Kh5 {[%clk 0:00:17]} 66. Kg8 {[%clk 0:00:10]}  Kg6 {[%clk 0:00:17]} 67. Kh8 {[%clk 0:00:11]}  Qe8# {[%clk 0:00:17]} 0-1


[Site "https://www.chess.com"]